[Event "Titled Tuesday Blitz February 22 Early 2022"]
[White "Krutko, Anatoly"]
[Black "Putri, Regita Desyari"]
[WhiteFideId "4185862"]
[BlackFideId "7109083"]
[WhiteElo "2378"]
[BlackElo "1930"]
[Result "0-1"]
[Round "02"]
[TimeControl "180+1"]
[Date "2022.02.22"]
[WhiteClock "0:00:12"]
[BlackClock "0:00:09"]

1. e4 {[%clk 0:02:36]}  e5 {[%clk 0:02:46]} 2. Nf3 {[%clk 0:02:35]}  Nc6 {[%clk 0:02:46]} 3. Bb5 {[%clk 0:02:34]}  a6 {[%clk 0:02:45]} 4. Ba4 {[%clk 0:02:34]}  Nf6 {[%clk 0:02:45]} 5. d3 {[%clk 0:02:34]}  Bc5 {[%clk 0:02:43]} 6. O-O {[%clk 0:02:34]}  d6 {[%clk 0:02:42]} 7. c3 {[%clk 0:02:33]}  O-O {[%clk 0:02:38]} 8. Nbd2 {[%clk 0:02:29]}  Ba7 {[%clk 0:02:30]} 9. h3 {[%clk 0:02:22]}  Ne7 {[%clk 0:02:30]} 10. Re1 {[%clk 0:02:20]}  Ng6 {[%clk 0:02:29]} 11. Nf1 {[%clk 0:02:20]}  b5 {[%clk 0:02:27]} 12. Bc2 {[%clk 0:02:20]}  Re8 {[%clk 0:02:22]} 13. d4 {[%clk 0:02:19]}  Bb7 {[%clk 0:02:17]} 14. Ng3 {[%clk 0:02:15]}  Nf4 {[%clk 0:02:07]} 15. b3 {[%clk 0:02:11]}  h6 {[%clk 0:02:03]} 16. d5 {[%clk 0:02:11]}  Bc8 {[%clk 0:01:26]} 17. Be3 {[%clk 0:02:07]}  Bd7 {[%clk 0:01:25]} 18. Bxa7 {[%clk 0:02:02]}  Rxa7 {[%clk 0:01:25]} 19. c4 {[%clk 0:02:02]}  c6 {[%clk 0:01:22]} 20. Qd2 {[%clk 0:01:53]}  Nh7 {[%clk 0:01:14]} 21. Rad1 {[%clk 0:01:48]}  c5 {[%clk 0:01:14]} 22. Kh2 {[%clk 0:01:41]}  b4 {[%clk 0:01:06]} 23. Ne2 {[%clk 0:01:39]}  Ng6 {[%clk 0:01:06]} 24. Rf1 {[%clk 0:01:36]}  a5 {[%clk 0:01:03]} 25. g3 {[%clk 0:01:31]}  a4 {[%clk 0:00:59]} 26. h4 {[%clk 0:01:30]}  axb3 {[%clk 0:00:59]} 27. axb3 {[%clk 0:01:30]}  Bg4 {[%clk 0:00:58]} 28. Neg1 {[%clk 0:01:31]}  Qf6 {[%clk 0:00:51]} 29. Kg2 {[%clk 0:01:24]}  Ra2 {[%clk 0:00:49]} 30. Ra1 {[%clk 0:01:23]}  Rea8 {[%clk 0:00:48]} 31. Rxa2 {[%clk 0:01:24]}  Rxa2 {[%clk 0:00:48]} 32. Qc1 {[%clk 0:01:24]}  Nhf8 {[%clk 0:00:40]} 33. Qb1 {[%clk 0:01:12]}  Ra3 {[%clk 0:00:40]} 34. Bd1 {[%clk 0:01:11]}  Bd7 {[%clk 0:00:36]} 35. Qd3 {[%clk 0:01:06]}  Ne7 {[%clk 0:00:36]} 36. Nh2 {[%clk 0:01:03]}  Qg6 {[%clk 0:00:35]} 37. h5 {[%clk 0:00:41]}  Qg5 {[%clk 0:00:30]} 38. Kh1 {[%clk 0:00:21]}  f5 {[%clk 0:00:28]} 39. f4 {[%clk 0:00:21]}  Qf6 {[%clk 0:00:27]} 40. Bf3 {[%clk 0:00:17]}  exf4 {[%clk 0:00:26]} 41. gxf4 {[%clk 0:00:17]}  Ra2 {[%clk 0:00:26]} 42. e5 {[%clk 0:00:16]}  dxe5 {[%clk 0:00:24]} 43. fxe5 {[%clk 0:00:16]}  Qxe5 {[%clk 0:00:24]} 44. Ne2 {[%clk 0:00:16]}  f4 {[%clk 0:00:18]} 45. Rg1 {[%clk 0:00:15]}  Bf5 {[%clk 0:00:19]} 46. Qd1 {[%clk 0:00:15]}  Be4 {[%clk 0:00:18]} 47. Qf1 {[%clk 0:00:10]}  Nf5 {[%clk 0:00:16]} 48. Bxe4 {[%clk 0:00:10]}  Qxe4+ {[%clk 0:00:17]} 49. Qf3 {[%clk 0:00:10]}  Qxf3+ {[%clk 0:00:16]} 50. Nxf3 {[%clk 0:00:11]}  Rxe2 {[%clk 0:00:17]} 51. Rd1 {[%clk 0:00:11]}  Nd6 {[%clk 0:00:14]} 52. Ra1 {[%clk 0:00:11]}  Nd7 {[%clk 0:00:11]} 53. Ra6 {[%clk 0:00:11]}  Nf5 {[%clk 0:00:10]} 54. Ra8+ {[%clk 0:00:11]}  Kf7 {[%clk 0:00:07]} 55. Ra7 {[%clk 0:00:12]}  Ke7 {[%clk 0:00:07]} 56. Kg1 {[%clk 0:00:12]}  Kd6 {[%clk 0:00:06]} 57. Ra8 {[%clk 0:00:12]}  Ne5 {[%clk 0:00:05]} 58. Nxe5 {[%clk 0:00:08]}  Rxe5 {[%clk 0:00:04]} 59. Kf2 {[%clk 0:00:07]}  Nd4 {[%clk 0:00:04]} 60. Rd8+ {[%clk 0:00:08]}  Ke7 {[%clk 0:00:04]} 61. Rg8 {[%clk 0:00:09]}  Re2+ {[%clk 0:00:05]} 62. Kf1 {[%clk 0:00:08]}  Kf7 {[%clk 0:00:06]} 63. Rc8 {[%clk 0:00:09]}  Rd2 {[%clk 0:00:06]} 64. Rc7+ {[%clk 0:00:09]}  Kf6 {[%clk 0:00:06]} 65. Rc6+ {[%clk 0:00:09]}  Nxc6 {[%clk 0:00:06]} 66. dxc6 {[%clk 0:00:10]}  Rd8 {[%clk 0:00:07]} 67. Kf2 {[%clk 0:00:10]}  Rc8 {[%clk 0:00:08]} 68. Kf3 {[%clk 0:00:11]}  Rxc6 {[%clk 0:00:09]} 69. Kxf4 {[%clk 0:00:12]}  Re6 {[%clk 0:00:09]} 0-1


[Site "https://www.chess.com"]

[Event "Titled Tuesday Blitz February 22 Early 2022"]
[White "Krysa, Leandro"]
[Black "Vidit, Santosh Gujrathi"]
[WhiteFideId "116807"]
[BlackFideId "5029465"]
[WhiteElo "2490"]
[BlackElo "2654"]
[Result "1/2-1/2"]
[Round "02"]
[TimeControl "180+1"]
[Date "2022.02.22"]
[WhiteClock "0:00:07"]
[BlackClock "0:00:10"]

1. e4 {[%clk 0:03:00]}  e5 {[%clk 0:02:59]} 2. Nf3 {[%clk 0:03:00]}  Nc6 {[%clk 0:03:00]} 3. Nc3 {[%clk 0:02:58]}  Bb4 {[%clk 0:02:41]} 4. Nd5 {[%clk 0:02:57]}  Ba5 {[%clk 0:02:37]} 5. c3 {[%clk 0:02:50]}  Nf6 {[%clk 0:02:21]} 6. Bd3 {[%clk 0:02:41]}  d6 {[%clk 0:02:17]} 7. b4 {[%clk 0:02:32]}  Bb6 {[%clk 0:02:17]} 8. a4 {[%clk 0:02:33]}  a5 {[%clk 0:02:15]} 9. b5 {[%clk 0:02:29]}  Ne7 {[%clk 0:02:11]} 10. Nxb6 {[%clk 0:02:28]}  cxb6 {[%clk 0:02:12]} 11. O-O {[%clk 0:02:22]}  O-O {[%clk 0:02:11]} 12. Ba3 {[%clk 0:02:07]}  Ng6 {[%clk 0:02:10]} 13. h3 {[%clk 0:02:02]}  Qc7 {[%clk 0:02:07]} 14. Bc2 {[%clk 0:02:01]}  Rd8 {[%clk 0:02:06]} 15. Re1 {[%clk 0:01:58]}  Be6 {[%clk 0:01:35]} 16. Rc1 {[%clk 0:01:53]}  d5 {[%clk 0:01:23]} 17. exd5 {[%clk 0:01:51]}  Bxd5 {[%clk 0:01:20]} 18. Re3 {[%clk 0:01:33]}  e4 {[%clk 0:01:16]} 19. Nd4 {[%clk 0:01:29]}  Ne5 {[%clk 0:01:16]} 20. Ra1 {[%clk 0:01:12]}  Nc4 {[%clk 0:01:09]} 21. Rg3 {[%clk 0:01:11]}  Rac8 {[%clk 0:00:57]} 22. Nf5 {[%clk 0:01:09]}  Nxa3 {[%clk 0:00:47]} 23. Rxa3 {[%clk 0:00:59]}  g6 {[%clk 0:00:46]} 24. Ne3 {[%clk 0:00:54]}  Be6 {[%clk 0:00:46]} 25. Ra1 {[%clk 0:00:48]}  Qd6 {[%clk 0:00:43]} 26. Nf1 {[%clk 0:00:46]}  Qf4 {[%clk 0:00:41]} 27. d4 {[%clk 0:00:44]}  h5 {[%clk 0:00:30]} 28. Re3 {[%clk 0:00:36]}  Bf5 {[%clk 0:00:30]} 29. Ng3 {[%clk 0:00:22]}  Nd5 {[%clk 0:00:28]} 30. Nxf5 {[%clk 0:00:21]}  gxf5 {[%clk 0:00:29]} 31. Rg3+ {[%clk 0:00:20]}  Kf8 {[%clk 0:00:29]} 32. Qxh5 {[%clk 0:00:20]}  Nf6 {[%clk 0:00:11]} 33. Qe2 {[%clk 0:00:14]}  Ke7 {[%clk 0:00:11]} 34. Bb3 {[%clk 0:00:11]}  Qd6 {[%clk 0:00:07]} 35. Rc1 {[%clk 0:00:05]}  Qc7 {[%clk 0:00:05]} 36. Rg5 {[%clk 0:00:05]}  Qf4 {[%clk 0:00:05]} 37. Qe3 {[%clk 0:00:05]}  Qxe3 {[%clk 0:00:05]} 38. fxe3 {[%clk 0:00:05]}  f4 {[%clk 0:00:05]} 39. Re5+ {[%clk 0:00:05]}  Kf8 {[%clk 0:00:05]} 40. exf4 {[%clk 0:00:06]}  Rxd4 {[%clk 0:00:05]} 41. cxd4 {[%clk 0:00:06]}  Rxc1+ {[%clk 0:00:05]} 42. Kh2 {[%clk 0:00:06]}  Rc3 {[%clk 0:00:06]} 43. Bd5 {[%clk 0:00:05]}  e3 {[%clk 0:00:04]} 44. Bxb7 {[%clk 0:00:05]}  Rd3 {[%clk 0:00:05]} 45. Bf3 {[%clk 0:00:05]}  Rxd4 {[%clk 0:00:04]} 46. Rxe3 {[%clk 0:00:04]}  Rxa4 {[%clk 0:00:05]} 47. f5 {[%clk 0:00:04]}  Rb4 {[%clk 0:00:05]} 48. Bc6 {[%clk 0:00:03]}  a4 {[%clk 0:00:06]} 49. g4 {[%clk 0:00:04]}  Rb3 {[%clk 0:00:04]} 50. Re1 {[%clk 0:00:03]}  a3 {[%clk 0:00:05]} 51. g5 {[%clk 0:00:04]}  Nh5 {[%clk 0:00:05]} 52. f6 {[%clk 0:00:04]}  Rb2+ {[%clk 0:00:05]} 53. Kg1 {[%clk 0:00:04]}  Ng7 {[%clk 0:00:02]} 54. fxg7+ {[%clk 0:00:03]}  Kxg7 {[%clk 0:00:03]} 55. Bd5 {[%clk 0:00:04]}  a2 {[%clk 0:00:04]} 56. Bxa2 {[%clk 0:00:02]}  Rxa2 {[%clk 0:00:04]} 57. Rb1 {[%clk 0:00:02]}  Rd2 {[%clk 0:00:04]} 58. h4 {[%clk 0:00:02]}  Kg6 {[%clk 0:00:04]} 59. Rb4 {[%clk 0:00:01]}  Kh5 {[%clk 0:00:05]} 60. Rf4 {[%clk 0:00:01]}  Rb2 {[%clk 0:00:05]} 61. Rxf7 {[%clk 0:00:01]}  Rxb5 {[%clk 0:00:04]} 62. Rf6 {[%clk 0:00:02]}  Kxh4 {[%clk 0:00:05]} 63. g6 {[%clk 0:00:02]}  Rg5+ {[%clk 0:00:05]} 64. Kf1 {[%clk 0:00:02]}  b5 {[%clk 0:00:05]} 65. Rb6 {[%clk 0:00:02]}  Kh5 {[%clk 0:00:06]} 66. Ke1 {[%clk 0:00:02]}  Rxg6 {[%clk 0:00:06]} 67. Rxb5+ {[%clk 0:00:03]}  Rg5 {[%clk 0:00:06]} 68. Rb2 {[%clk 0:00:03]}  Re5+ {[%clk 0:00:06]} 69. Kd1 {[%clk 0:00:03]}  Rf5 {[%clk 0:00:07]} 70. Rd2 {[%clk 0:00:04]}  Kg5 {[%clk 0:00:08]} 71. Kc2 {[%clk 0:00:04]}  Kf6 {[%clk 0:00:08]} 72. Rd3 {[%clk 0:00:05]}  Re5 {[%clk 0:00:09]} 73. Kd2 {[%clk 0:00:05]}  Ke6 {[%clk 0:00:10]} 74. Re3 {[%clk 0:00:06]}  Rxe3 {[%clk 0:00:10]} 75. Kxe3 {[%clk 0:00:07]} 1/2-1/2


[Site "https://www.chess.com"]

[Event "Titled Tuesday Blitz February 22 Early 2022"]
[White "Lou, Yiping"]
[Black "Vusatiuk, Vladimir"]
[WhiteFideId "8603928"]
[BlackFideId "14118610"]
[WhiteElo "2412"]
[BlackElo "2157"]
[Result "1-0"]
[Round "02"]
[TimeControl "180+1"]
[Date "2022.02.22"]
[WhiteClock "0:00:57"]
[BlackClock "0:00:17"]

1. c4 {[%clk 0:02:59]}  Nf6 {[%clk 0:02:56]} 2. Nc3 {[%clk 0:02:56]}  e6 {[%clk 0:02:55]} 3. Nf3 {[%clk 0:02:53]}  d5 {[%clk 0:02:55]} 4. d4 {[%clk 0:02:53]}  a6 {[%clk 0:02:36]} 5. c5 {[%clk 0:02:49]}  b6 {[%clk 0:02:35]} 6. cxb6 {[%clk 0:02:49]}  cxb6 {[%clk 0:02:34]} 7. Bf4 {[%clk 0:02:50]}  Bd6 {[%clk 0:02:33]} 8. e3 {[%clk 0:02:50]}  O-O {[%clk 0:02:28]} 9. Bd3 {[%clk 0:02:49]}  Bb7 {[%clk 0:02:25]} 10. Rc1 {[%clk 0:02:46]}  Bxf4 {[%clk 0:02:17]} 11. exf4 {[%clk 0:02:46]}  Ne4 {[%clk 0:02:18]} 12. O-O {[%clk 0:02:42]}  Qd6 {[%clk 0:02:00]} 13. g3 {[%clk 0:02:41]}  Nd7 {[%clk 0:01:59]} 14. Qe2 {[%clk 0:02:34]}  Ndf6 {[%clk 0:01:46]} 15. Rc2 {[%clk 0:02:32]}  b5 {[%clk 0:01:41]} 16. Rfc1 {[%clk 0:02:26]}  h6 {[%clk 0:01:30]} 17. Ne5 {[%clk 0:02:25]}  Rac8 {[%clk 0:01:29]} 18. f3 {[%clk 0:02:18]}  Nxc3 {[%clk 0:01:26]} 19. Rxc3 {[%clk 0:02:19]}  Rxc3 {[%clk 0:01:25]} 20. Rxc3 {[%clk 0:02:19]}  Qb4 {[%clk 0:01:22]} 21. Qf2 {[%clk 0:02:17]}  Rc8 {[%clk 0:01:17]} 22. a3 {[%clk 0:02:11]}  Qf8 {[%clk 0:01:11]} 23. Qc2 {[%clk 0:02:07]}  Rxc3 {[%clk 0:01:09]} 24. Qxc3 {[%clk 0:02:07]}  Qc8 {[%clk 0:01:10]} 25. Qc5 {[%clk 0:01:54]}  Nd7 {[%clk 0:01:00]} 26. Nxd7 {[%clk 0:01:34]}  Qxd7 {[%clk 0:01:00]} 27. b4 {[%clk 0:01:32]}  Qc6 {[%clk 0:00:55]} 28. Kf2 {[%clk 0:01:28]}  Qxc5 {[%clk 0:00:37]} 29. dxc5 {[%clk 0:01:26]}  f6 {[%clk 0:00:36]} 30. Ke3 {[%clk 0:01:24]}  g5 {[%clk 0:00:26]} 31. fxg5 {[%clk 0:01:16]}  hxg5 {[%clk 0:00:27]} 32. f4 {[%clk 0:01:10]}  e5 {[%clk 0:00:26]} 33. fxe5 {[%clk 0:01:08]}  fxe5 {[%clk 0:00:26]} 34. Bf5 {[%clk 0:01:07]}  Kf7 {[%clk 0:00:20]} 35. Bd7 {[%clk 0:00:59]}  Ke7 {[%clk 0:00:20]} 36. c6 {[%clk 0:00:59]}  Ba8 {[%clk 0:00:21]} 37. h4 {[%clk 0:00:59]}  gxh4 {[%clk 0:00:21]} 38. gxh4 {[%clk 0:00:59]}  d4+ {[%clk 0:00:21]} 39. Kd3 {[%clk 0:00:58]}  Kf6 {[%clk 0:00:16]} 40. c7 {[%clk 0:00:57]}  Bb7 {[%clk 0:00:17]} 41. c8=Q {[%clk 0:00:57]}  Bxc8 {[%clk 0:00:17]} 42. Bxc8 {[%clk 0:00:58]}  Kg6 {[%clk 0:00:17]} 43. Bxa6 {[%clk 0:00:57]} 1-0


[Site "https://www.chess.com"]

[Event "Titled Tuesday Blitz February 22 Early 2022"]
[White "Marson, Juan Miguel"]
[Black "Zemerov, Vladimir"]
[WhiteFideId "106585"]
[BlackFideId "4111583"]
[WhiteElo "2053"]
[BlackElo "2277"]
[Result "0-1"]
[Round "02"]
[TimeControl "180+1"]
[Date "2022.02.22"]
[WhiteClock "0:00:17"]
[BlackClock "0:01:29"]

1. e4 {[%clk 0:03:00]}  c5 {[%clk 0:02:43]} 2. c3 {[%clk 0:03:00]}  e6 {[%clk 0:02:43]} 3. d4 {[%clk 0:03:00]}  d5 {[%clk 0:02:42]} 4. exd5 {[%clk 0:02:57]}  exd5 {[%clk 0:02:41]} 5. Nf3 {[%clk 0:02:57]}  Nf6 {[%clk 0:02:40]} 6. Bb5+ {[%clk 0:02:55]}  Bd7 {[%clk 0:02:40]} 7. Qe2+ {[%clk 0:02:53]}  Qe7 {[%clk 0:02:38]} 8. O-O {[%clk 0:02:53]}  Qxe2 {[%clk 0:02:37]} 9. Bxe2 {[%clk 0:02:53]}  c4 {[%clk 0:02:34]} 10. b3 {[%clk 0:02:49]}  cxb3 {[%clk 0:02:33]} 11. axb3 {[%clk 0:02:48]}  Bd6 {[%clk 0:02:32]} 12. Ba3 {[%clk 0:02:46]}  Bxa3 {[%clk 0:02:30]} 13. Nxa3 {[%clk 0:02:47]}  O-O {[%clk 0:02:31]} 14. Ne5 {[%clk 0:02:47]}  Nc6 {[%clk 0:02:26]} 15. Nxd7 {[%clk 0:02:41]}  Nxd7 {[%clk 0:02:25]} 16. Nb5 {[%clk 0:02:42]}  Nf6 {[%clk 0:02:20]} 17. Bf3 {[%clk 0:02:39]}  Rfd8 {[%clk 0:02:18]} 18. Rfe1 {[%clk 0:02:38]}  a6 {[%clk 0:02:18]} 19. Na3 {[%clk 0:02:27]}  b5 {[%clk 0:02:15]} 20. Nc2 {[%clk 0:02:22]}  Kf8 {[%clk 0:02:08]} 21. Ne3 {[%clk 0:02:07]}  a5 {[%clk 0:02:04]} 22. Red1 {[%clk 0:01:53]}  Rac8 {[%clk 0:02:03]} 23. Kf1 {[%clk 0:01:32]}  g6 {[%clk 0:02:03]} 24. c4 {[%clk 0:00:51]}  bxc4 {[%clk 0:02:02]} 25. bxc4 {[%clk 0:00:51]}  dxc4 {[%clk 0:01:57]} 26. Bxc6 {[%clk 0:00:48]}  Rxc6 {[%clk 0:01:55]} 27. Rxa5 {[%clk 0:00:49]}  c3 {[%clk 0:01:54]} 28. Nc2 {[%clk 0:00:43]}  Nd5 {[%clk 0:01:51]} 29. g3 {[%clk 0:00:36]}  Rb6 {[%clk 0:01:51]} 30. Rc1 {[%clk 0:00:32]}  Rb2 {[%clk 0:01:50]} 31. Rc5 {[%clk 0:00:32]}  Kg7 {[%clk 0:01:48]} 32. h4 {[%clk 0:00:31]}  h5 {[%clk 0:01:47]} 33. Ne3 {[%clk 0:00:28]}  Nb4 {[%clk 0:01:41]} 34. R5xc3 {[%clk 0:00:18]}  Rxd4 {[%clk 0:01:40]} 35. Rc4 {[%clk 0:00:15]}  Rdd2 {[%clk 0:01:39]} 36. Rf4 {[%clk 0:00:15]}  Nd3 {[%clk 0:01:34]} 37. Nc4 {[%clk 0:00:14]}  Nxc1 {[%clk 0:01:31]} 38. Nxb2 {[%clk 0:00:14]}  Rxb2 {[%clk 0:01:31]} 39. Rd4 {[%clk 0:00:13]}  Nb3 {[%clk 0:01:30]} 40. Rd7 {[%clk 0:00:11]}  Rd2 {[%clk 0:01:29]} 41. Rb7 {[%clk 0:00:11]}  Nc5 {[%clk 0:01:28]} 42. Rc7 {[%clk 0:00:11]}  Ne4 {[%clk 0:01:28]} 43. Ke1 {[%clk 0:00:11]}  Rxf2 {[%clk 0:01:25]} 44. Re7 {[%clk 0:00:12]}  Rg2 {[%clk 0:01:25]} 45. Rxe4 {[%clk 0:00:12]}  Rxg3 {[%clk 0:01:25]} 46. Kf2 {[%clk 0:00:12]}  Rg4 {[%clk 0:01:25]} 47. Re3 {[%clk 0:00:10]}  Rxh4 {[%clk 0:01:25]} 48. Kg3 {[%clk 0:00:11]}  Rg4+ {[%clk 0:01:25]} 49. Kf3 {[%clk 0:00:12]}  f5 {[%clk 0:01:25]} 50. Ra3 {[%clk 0:00:13]}  Kh6 {[%clk 0:01:25]} 51. Ra6 {[%clk 0:00:14]}  h4 {[%clk 0:01:25]} 52. Ra8 {[%clk 0:00:14]}  Kg5 {[%clk 0:01:26]} 53. Rh8 {[%clk 0:00:15]}  Rg3+ {[%clk 0:01:26]} 54. Kf2 {[%clk 0:00:15]}  Kg4 {[%clk 0:01:26]} 55. Rh7 {[%clk 0:00:15]}  g5 {[%clk 0:01:27]} 56. Rh6 {[%clk 0:00:15]}  f4 {[%clk 0:01:27]} 57. Rh7 {[%clk 0:00:15]}  h3 {[%clk 0:01:28]} 58. Rh8 {[%clk 0:00:15]}  Rg2+ {[%clk 0:01:28]} 59. Kf1 {[%clk 0:00:15]}  f3 {[%clk 0:01:29]} 60. Rg8 {[%clk 0:00:15]}  h2 {[%clk 0:01:28]} 61. Rh8 {[%clk 0:00:16]}  Rg1+ {[%clk 0:01:28]} 62. Kf2 {[%clk 0:00:16]}  h1=Q {[%clk 0:01:29]} 63. Rxh1 {[%clk 0:00:16]}  Rxh1 {[%clk 0:01:29]} 64. Ke3 {[%clk 0:00:17]}  Rh2 {[%clk 0:01:29]} 0-1


[Site "https://www.chess.com"]

[Event "Titled Tuesday Blitz February 22 Early 2022"]
[White "Martinez, Shawn"]
[Black "Petrovic, Aleksa"]
[WhiteFideId "2039770"]
[BlackFideId "967629"]
[WhiteElo "2174"]
[BlackElo "2139"]
[Result "1-0"]
[Round "02"]
[TimeControl "180+1"]
[Date "2022.02.22"]
[WhiteClock "0:00:07"]
[BlackClock "0:00:06"]

1. e4 {[%clk 0:02:58]}  Nc6 {[%clk 0:02:57]} 2. d4 {[%clk 0:02:57]}  d5 {[%clk 0:02:56]} 3. e5 {[%clk 0:02:56]}  Bf5 {[%clk 0:02:56]} 4. Nf3 {[%clk 0:02:48]}  f6 {[%clk 0:02:51]} 5. Bd3 {[%clk 0:02:47]}  Bxd3 {[%clk 0:02:48]} 6. Qxd3 {[%clk 0:02:48]}  Qd7 {[%clk 0:02:43]} 7. Nc3 {[%clk 0:02:45]}  O-O-O {[%clk 0:02:41]} 8. O-O {[%clk 0:02:36]}  fxe5 {[%clk 0:02:27]} 9. dxe5 {[%clk 0:02:35]}  e6 {[%clk 0:02:26]} 10. a3 {[%clk 0:02:23]}  Nge7 {[%clk 0:02:19]} 11. b4 {[%clk 0:02:20]}  Ng6 {[%clk 0:02:18]} 12. Re1 {[%clk 0:02:19]}  d4 {[%clk 0:02:13]} 13. Na4 {[%clk 0:02:06]}  Qd5 {[%clk 0:02:01]} 14. c4 {[%clk 0:01:24]}  Ncxe5 {[%clk 0:01:23]} 15. Nxe5 {[%clk 0:01:04]}  Nxe5 {[%clk 0:01:23]} 16. Qh3 {[%clk 0:01:01]}  Nxc4 {[%clk 0:01:15]} 17. Rxe6 {[%clk 0:00:44]}  Kb8 {[%clk 0:01:12]} 18. Bg5 {[%clk 0:00:43]}  Rc8 {[%clk 0:01:01]} 19. Bf4 {[%clk 0:00:35]}  Bd6 {[%clk 0:00:55]} 20. Bxd6 {[%clk 0:00:34]}  Nxd6 {[%clk 0:00:56]} 21. Nc5 {[%clk 0:00:34]}  b6 {[%clk 0:00:43]} 22. Nd3 {[%clk 0:00:21]}  Rhe8 {[%clk 0:00:33]} 23. Rae1 {[%clk 0:00:21]}  Rxe6 {[%clk 0:00:33]} 24. Rxe6 {[%clk 0:00:21]}  h6 {[%clk 0:00:27]} 25. Re7 {[%clk 0:00:17]}  Qb3 {[%clk 0:00:23]} 26. Qf3 {[%clk 0:00:15]}  Qxa3 {[%clk 0:00:21]} 27. h4 {[%clk 0:00:14]}  Qa1+ {[%clk 0:00:20]} 28. Kh2 {[%clk 0:00:14]}  Qc3 {[%clk 0:00:20]} 29. Rxg7 {[%clk 0:00:11]}  a5 {[%clk 0:00:18]} 30. bxa5 {[%clk 0:00:11]}  bxa5 {[%clk 0:00:19]} 31. Qe2 {[%clk 0:00:10]}  a4 {[%clk 0:00:18]} 32. Ne5 {[%clk 0:00:10]}  a3 {[%clk 0:00:16]} 33. Qa6 {[%clk 0:00:08]}  a2 {[%clk 0:00:06]} 34. Nd7# {[%clk 0:00:07]} 1-0


[Site "https://www.chess.com"]

[Event "Titled Tuesday Blitz February 22 Early 2022"]
[White "Martins, Bruno Andre Leite"]
[Black "Samadov, Read"]
[WhiteFideId "1942255"]
[BlackFideId "13417444"]
[WhiteElo "2137"]
[BlackElo "2084"]
[Result "0-1"]
[Round "02"]
[TimeControl "180+1"]
[Date "2022.02.22"]
[WhiteClock "0:00:05"]
[BlackClock "0:00:06"]

1. e4 {[%clk 0:03:00]}  c5 {[%clk 0:02:59]} 2. Nf3 {[%clk 0:02:58]}  d6 {[%clk 0:03:00]} 3. d4 {[%clk 0:02:58]}  cxd4 {[%clk 0:03:00]} 4. Nxd4 {[%clk 0:02:59]}  Nf6 {[%clk 0:03:00]} 5. Nc3 {[%clk 0:03:00]}  a6 {[%clk 0:03:01]} 6. Bd3 {[%clk 0:03:00]}  g6 {[%clk 0:02:56]} 7. O-O {[%clk 0:02:59]}  Bg7 {[%clk 0:02:56]} 8. Re1 {[%clk 0:03:00]}  O-O {[%clk 0:02:57]} 9. Bf1 {[%clk 0:03:00]}  b6 {[%clk 0:02:50]} 10. Nd5 {[%clk 0:02:50]}  Bb7 {[%clk 0:02:47]} 11. Bg5 {[%clk 0:02:48]}  Nbd7 {[%clk 0:02:43]} 12. c4 {[%clk 0:02:46]}  h6 {[%clk 0:02:40]} 13. Bc1 {[%clk 0:02:26]}  e6 {[%clk 0:02:37]} 14. Nxf6+ {[%clk 0:02:25]}  Nxf6 {[%clk 0:02:38]} 15. f3 {[%clk 0:02:24]}  Rc8 {[%clk 0:02:29]} 16. Be3 {[%clk 0:02:13]}  Nh5 {[%clk 0:02:10]} 17. Qd2 {[%clk 0:02:12]}  Kh7 {[%clk 0:02:08]} 18. Rad1 {[%clk 0:02:00]}  d5 {[%clk 0:01:57]} 19. cxd5 {[%clk 0:01:59]}  exd5 {[%clk 0:01:56]} 20. g4 {[%clk 0:01:59]}  Nf6 {[%clk 0:01:49]} 21. e5 {[%clk 0:01:59]}  Nd7 {[%clk 0:01:47]} 22. f4 {[%clk 0:01:59]}  Nc5 {[%clk 0:01:41]} 23. Bg2 {[%clk 0:01:45]}  Ne4 {[%clk 0:01:40]} 24. Qe2 {[%clk 0:01:45]}  Qe7 {[%clk 0:01:31]} 25. Rc1 {[%clk 0:01:41]}  f6 {[%clk 0:01:18]} 26. Rxc8 {[%clk 0:01:11]}  Bxc8 {[%clk 0:01:16]} 27. e6 {[%clk 0:01:10]}  Bxe6 {[%clk 0:01:09]} 28. Qxa6 {[%clk 0:01:09]}  Bxg4 {[%clk 0:00:55]} 29. Qxb6 {[%clk 0:01:09]}  f5 {[%clk 0:00:41]} 30. a4 {[%clk 0:01:08]}  g5 {[%clk 0:00:34]} 31. Qe6 {[%clk 0:00:57]}  Qb4 {[%clk 0:00:32]} 32. Nc2 {[%clk 0:00:44]}  Qxa4 {[%clk 0:00:31]} 33. Bxe4 {[%clk 0:00:35]}  dxe4 {[%clk 0:00:25]} 34. b3 {[%clk 0:00:34]}  Qa2 {[%clk 0:00:23]} 35. Qc4 {[%clk 0:00:34]}  Qa8 {[%clk 0:00:18]} 36. Nd4 {[%clk 0:00:24]}  Rc8 {[%clk 0:00:19]} 37. Qf7 {[%clk 0:00:23]}  Rf8 {[%clk 0:00:13]} 38. Qe7 {[%clk 0:00:22]}  Re8 {[%clk 0:00:08]} 39. Qf7 {[%clk 0:00:21]}  Rf8 {[%clk 0:00:08]} 40. Qe7 {[%clk 0:00:21]}  Qe8 {[%clk 0:00:07]} 41. Qxe8 {[%clk 0:00:15]}  Rxe8 {[%clk 0:00:08]} 42. Ne2 {[%clk 0:00:06]}  Rd8 {[%clk 0:00:07]} 43. Ng3 {[%clk 0:00:06]}  Rd3 {[%clk 0:00:07]} 44. b4 {[%clk 0:00:04]}  Rxe3 {[%clk 0:00:05]} 45. Rxe3 {[%clk 0:00:04]}  Bd4 {[%clk 0:00:06]} 46. Kf2 {[%clk 0:00:05]}  gxf4 {[%clk 0:00:06]} 47. Nf1 {[%clk 0:00:05]}  fxe3+ {[%clk 0:00:06]} 0-1


[Site "https://www.chess.com"]

[Event "Titled Tuesday Blitz February 22 Early 2022"]
[White "Martirosyan, Haik M."]
[Black "Toncheva, Nadya"]
[WhiteFideId "13306553"]
[BlackFideId "2924056"]
[WhiteElo "2735"]
[BlackElo "1920"]
[Result "1-0"]
[Round "02"]
[TimeControl "180+1"]
[Date "2022.02.22"]
[WhiteClock "0:02:01"]
[BlackClock "0:00:12"]

1. e4 {[%clk 0:03:00]}  c5 {[%clk 0:02:58]} 2. Nf3 {[%clk 0:02:59]}  d6 {[%clk 0:02:58]} 3. Bd3 {[%clk 0:02:58]}  Nf6 {[%clk 0:02:57]} 4. c3 {[%clk 0:02:58]}  g6 {[%clk 0:02:58]} 5. h3 {[%clk 0:02:57]}  Bg7 {[%clk 0:02:57]} 6. O-O {[%clk 0:02:57]}  O-O {[%clk 0:02:57]} 7. Bc2 {[%clk 0:02:57]}  Nc6 {[%clk 0:02:57]} 8. Re1 {[%clk 0:02:57]}  e6 {[%clk 0:02:56]} 9. d4 {[%clk 0:02:56]}  cxd4 {[%clk 0:02:57]} 10. cxd4 {[%clk 0:02:57]}  a6 {[%clk 0:02:53]} 11. Nc3 {[%clk 0:02:56]}  b5 {[%clk 0:02:53]} 12. Bf4 {[%clk 0:02:50]}  Bb7 {[%clk 0:02:49]} 13. Rc1 {[%clk 0:02:50]}  Rc8 {[%clk 0:02:49]} 14. Bb1 {[%clk 0:02:51]}  d5 {[%clk 0:02:40]} 15. e5 {[%clk 0:02:50]}  Nd7 {[%clk 0:02:40]} 16. Qd2 {[%clk 0:02:49]}  b4 {[%clk 0:02:28]} 17. Na4 {[%clk 0:02:43]}  Re8 {[%clk 0:02:16]} 18. h4 {[%clk 0:02:42]}  a5 {[%clk 0:01:48]} 19. Bd3 {[%clk 0:02:40]}  h5 {[%clk 0:01:24]} 20. Bg5 {[%clk 0:02:33]}  Qc7 {[%clk 0:01:18]} 21. Qf4 {[%clk 0:02:33]}  Qb8 {[%clk 0:01:13]} 22. g4 {[%clk 0:02:30]}  hxg4 {[%clk 0:01:07]} 23. Qxg4 {[%clk 0:02:31]}  Ne7 {[%clk 0:01:07]} 24. Rxc8 {[%clk 0:02:26]}  Bxc8 {[%clk 0:01:03]} 25. h5 {[%clk 0:02:24]}  Nf5 {[%clk 0:01:02]} 26. Bxf5 {[%clk 0:02:21]}  exf5 {[%clk 0:00:58]} 27. Qh4 {[%clk 0:02:21]}  Re6 {[%clk 0:00:51]} 28. h6 {[%clk 0:02:17]}  Bh8 {[%clk 0:00:33]} 29. h7+ {[%clk 0:02:15]}  Kf8 {[%clk 0:00:33]} 30. Bh6+ {[%clk 0:02:15]}  Ke8 {[%clk 0:00:32]} 31. Ng5 {[%clk 0:02:15]}  Qb5 {[%clk 0:00:20]} 32. Nxe6 {[%clk 0:02:12]}  fxe6 {[%clk 0:00:20]} 33. Rc1 {[%clk 0:02:09]}  Ba6 {[%clk 0:00:18]} 34. b3 {[%clk 0:02:07]}  Kf7 {[%clk 0:00:15]} 35. Qd8 {[%clk 0:02:02]}  g5 {[%clk 0:00:12]} 36. Qg8+ {[%clk 0:02:00]}  Ke7 {[%clk 0:00:12]} 37. Bxg5+ {[%clk 0:02:01]} 1-0


[Site "https://www.chess.com"]